Cogmind - Beta 15 @@@ ROGUE MODE // 2025.08.23 @ 10:07:51 Player: Lenbot7 Result: Destroyed by G-47 Trooper with Particle Gun Performance ------------- Evolutions (1) 500 Regions Visited (3) 600 Robots Destroyed (21) 105 Value Destroyed (626) 626 Prototype IDs (4) 80 Alien Tech Used (0) 0 Bonus (0) 0 TOTAL SCORE: 1911 Bonus ------- None Cogmind --------- Core Integrity 0/400 Matter 300/300 Energy 100/100 System Corruption 0% Temperature Cool (15) Movement Core (100) Ox1 Location -9/Materials Parts ------- > --- POWER (2) -------- (None) > --- PROPULSION (2) --- (None) > --- UTILITY (3) ------ Small Storage Unit > --- WEAPON (2) ------- (None) > --- INVENTORY (8) ---- Faulty Heavy Ion Engine Compact Wheel Compact Wheel EM Pulse Gun Medium Laser Peak State ------------ > --- POWER ------------ Ion Engine Heavy Ion Engine > --- PROPULSION ------- Aluminum Leg Aluminum Leg > --- UTILITY ---------- Small Storage Unit > --- WEAPON ----------- Beam Rifle Light Assault Rifle > --- INVENTORY -------- Ion Engine Light Treads Light Treads Compact Wheel Compact Wheel EM Pulse Gun Medium Laser [Rating: 10] Favorites ----------- Power Ion Engine Engine Ion Engine Propulsion Light Treads Treads Light Treads Leg Aluminum Leg Utility Small Storage Unit Storage Small Storage Unit Weapon Improved Assault Rifle Energy Gun Beam Rifle Energy Cannon Light EM Pulse Cannon Ballistic Gun Improved Assault Rifle Build | -11 -10 -10 -9 ------- Run | Yrd Mat Min Mat Slots Evolved 2 | . . . 2 Power 1 | . . . 1 Propulsion . | . . . . Utility 1 | . . . 1 Weapon . | . . . . Parts Attached 9 | . . 1 8 Power 3 | . . . 3 Engine 3 | . . . 3 Core . | . . . . Reactor . | . . . . Propulsion 2 | . . . 2 Treads 2 | . . . 2 Leg . | . . . . Wheel . | . . . . Hover . | . . . . Flight . | . . . . Utility . | . . . . Device . | . . . . Storage . | . . . . Processor . | . . . . Hackware . | . . . . Protection . | . . . . Artifact . | . . . . Weapon 4 | . . 1 3 Energy Gun 2 | . . 1 1 Energy Cannon 1 | . . . 1 Ballistic Gun 1 | . . . 1 Ballistic Cannon . | . . . . Launcher . | . . . . Special Weapon . | . . . . Impact Weapon . | . . . . Slashing Weapon . | . . . . Piercing Weapon . | . . . . Special Melee Weapon . | . . . . Unidentified Prototypes 2 | . . . 2 Parts Lost 10 | . . . 10 Power 2 | . . . 2 Propulsion 4 | . . . 4 Utility . | . . . . Weapon 4 | . . . 4 Highest Loss Streak 3 | . . . 3 To Critical Strikes . | . . . . Average Backups 5 | . 6 6 5 Power 1 | . 1 1 1 Propulsion 2 | . 4 4 2 Utility . | . . . . Weapon 1 | . 1 1 1 Tool/Special . | . . . . Unused Backups 1 | . . . 1 Power . | . . . . Propulsion . | . . . . Utility . | . . . . Weapon 1 | . . . 1 Tool/Special . | . . . . Average Slot Usage (%) 55 | . 85 85 50 Engine 5 | . 14 14 4 Treads 13 | . . . 16 Leg 8 | . 28 28 4 Storage 11 | . 14 14 11 Energy Gun 4 | . 14 14 3 Energy Cannon 1 | . . . 1 Ballistic Gun 9 | . 14 14 9 Peak Build Rating 10 | . 6 7 10 Average Rating 6 | . 6 6 6 On Entrance 6 | 6 6 6 7 Naked Turns . | . . . . Heaviest Build 17 | 13 13 14 17 Greatest Support 40 | 20 20 20 40 Greatest Overweight (x) 5 | . . . 5 Average Overweight (x) . | . . . . Largest Inventory Capacity 8 | . 8 8 8 Average Capacity 8 | . 8 8 8 Most Carried 8 | . 6 7 8 Average Carried 5 | . 6 6 5 Final Capacity 8 | 8 8 8 8 Final Carried 7 | 6 6 7 5 Class Distribution -------------------- 100% | Mutant Dominant Class ---------------- Mutant | -10/Materials Mutant | -10/Mines Mutant | -9/Materials Resources | -11 -10 -10 -9 ----------- Run | Yrd Mat Min Mat Matter Collected 344 | 200 . 13 131 Remotely . | . . . . Salvage Created 758 | . . 74 684 Parts 47 | . . 6 41 Haulers Intercepted . | . . . . Recyclers Shooed . | . . . . Parts Field Recycled . | . . . . Retrieved Matter . | . . . . Parts Self-Destructed . | . . . . Prevented . | . . . . Kills | -11 -10 -10 -9 ------- Run | Yrd Mat Min Mat Combat Hostiles Destroyed 19 | . . 1 18 Guns 13 | . . 1 12 Cannons 5 | . . . 5 Classes Destroyed 6 | . . 2 4 Worker 1 | . . 1 . Watcher 1 | . . . 1 Swarmer 4 | . . . 4 Grunt 11 | . . . 11 Duelist 1 | . . . 1 Sentry 3 | . . 1 2 Best Kill Streak 6 | . . 2 6 Combat Bots Only 5 | . . 1 5 Max Kills in Single Turn 1 | . . 1 1 Gunslinging . | . . . . Exploded . | . . . . Melee . | . . . . Uniques/NPCs Destroyed . | . . . . Combat | -11 -10 -10 -9 -------- Run | Yrd Mat Min Mat Hostile Shots Fired 165 | . . 8 157 Missed 32 | . . 2 30 Hits 133 | . . 6 127 Melee 2 | . . . 2 Projectile 131 | . . 6 125 Critical Strikes 1 | . . . 1 Damage Taken 1618 | . . 88 1530 Core 405 | . . . 405 Absorbed by Shields . | . . . . Core Remaining (%) 100 | 100 . 100 . Volleys Fired 68 | . . 3 65 Largest 2 | . . 2 2 Hottest 106 | . . 60 106 Shots Fired 109 | . . 6 103 Gun 89 | . . 6 83 Cannon 20 | . . . 20 Launcher . | . . . . Special . | . . . . Kinetic 38 | . . 3 35 Thermal 48 | . . . 48 Explosive . | . . . . Electromagnetic 23 | . . 3 20 Robot Hit Streak 10 | . . 2 10 Robot Miss Streak 4 | . . 2 4 Penetration Max . | . . . . Secondary Targets . | . . . . Shots Hit Robots 70 | . . 2 68 Core Hits 33 | . . 3 30 Critical Kills . | . . . . Critical Parts Destroyed . | . . . . Critical Strikes 5 | . . . 5 Burn 5 | . . . 5 Melee Attacks . | . . . . Impact . | . . . . Slashing . | . . . . Piercing . | . . . . Sneak Attacks . | . . . . Combat Hostiles . | . . . . Follow-up Attacks . | . . . . Damage Inflicted 1071 | . . 41 1030 Guns 694 | . . 41 653 Cannons 343 | . . . 343 Explosions 29 | . . . 29 Melee . | . . . . Ramming 5 | . . . 5 Kinetic 207 | . . 19 188 Thermal 494 | . . . 494 Explosive . | . . . . Electromagnetic 365 | . . 22 343 Impact . | . . . . Slashing . | . . . . Piercing . | . . . . Highest Corruption . | . . . . Average Corruption . | . . . . Corruption Purged . | . . . . Corruption Blocked . | . . . . Overload Shots . | . . . . Overflow Damage 11 | . . . 11 Projectiles . | . . . . Explosions 11 | . . . 11 Melee . | . . . . Knockbacks . | . . . . Impact . | . . . . Kinetic . | . . . . Secondary . | . . . . Self-Inflicted Damage 35 | . . . 35 Shots 1 | . . . 1 Rammed 1 | . . . 1 Targets Rammed 1 | . . . 1 Kicked . | . . . . Crushed . | . . . . Highest Temperature 222 | . . 49 222 Average Temperature 71 | . . 29 74 Received Heat Transfer 750 | . . 36 714 Siege Activations . | . . . . Martial Activations . | . . . . Shielding Activations . | . . . . Robots Disrupted . | . . . . Combat Hostiles . | . . . . Robots Corrupted . | . . . . Combat Hostiles . | . . . . Parts Fried 3 | . . . 3 Impact Corruptions . | . . . . Robots Melted 1 | . . . 1 Combat Hostiles 1 | . . . 1 Parts Melted 4 | . . . 4 Heat Transferred 1715 | . . . 1715 Parts Sabotaged . | . . . . Parts Stolen . | . . . . Parts Stripped . | . . . . Power Chain Reactions 1 | . . . 1 Alert | -11 -10 -10 -9 ------- Run | Yrd Mat Min Mat Maximum Alert Level . | . . . . Low Security (%) 100 | . 100 100 100 Level 1 . | . . . . Level 2 . | . . . . Level 3 . | . . . . Level 4 . | . . . . Level 5 . | . . . . High Security . | . . . . Max Security . | . . . . Peak Influence 182 | . 5 25 182 Initial . | . . . . Average 62 | . 1 4 72 Influence Increases 537 | . 5 25 507 Destroy 0b10 Robot/C 380 | . . 20 360 Destroy 0b10 Robot/NC 10 | . . 5 5 Destroy Leader 82 | . . . 82 Successful Hack 15 | . 5 . 10 Destroy Structure 5 | . . . 5 Partial Spotted 15 | . . . 15 Lose Combat Pursuer 30 | . . . 30 Influence Decreases 537 | . 5 25 507 Time Decay 462 | . 5 25 432 Lost Part 75 | . . . 75 Squads Dispatched 5 | . 1 . 4 Investigation 3 | . 1 . 2 Extermination . | . . . . Reinforcement 2 | . . . 2 Assault . | . . . . Garrison . | . . . . Intercept . | . . . . Searches Triggered . | . . . . Construction Impeded . | . . . . Haulers Reinforced . | . . . . Active Scanning Responses . | . . . . Cargo Convoy Interrupts . | . . . . Stealth | -11 -10 -10 -9 --------- Run | Yrd Mat Min Mat Distress Signals 5 | . . . 5 Communications Jammed . | . . . . Distress Signals . | . . . . Times Spotted 35 | . . 2 33 Peak Tracking Total 8 | . . 2 8 Tactical Retreats 1 | . . . 1 Traps | -11 -10 -10 -9 ------- Run | Yrd Mat Min Mat Traps Triggered . | . . . . Indirectly . | . . . . Trap Hack Attempts . | . . . . Triggered . | . . . . Disarmed . | . . . . Reprogrammed . | . . . . Reused . | . . . . Traps Extracted . | . . . . Installed . | . . . . Triggered . | . . . . Machines | -11 -10 -10 -9 ---------- Run | Yrd Mat Min Mat Machines Disabled . | . . . . Max in Single Turn . | . . . . Machines Repaired . | . . . . Machines Dismantled . | . . . . Machines Sabotaged . | . . . . Overloaded Fab Kills . | . . . . Hacking | -11 -10 -10 -9 --------- Run | Yrd Mat Min Mat Machines Accessed 5 | . 1 1 3 Terminals 5 | . 1 1 3 Fabricators . | . . . . Repair Stations . | . . . . Recycling Units . | . . . . Scanalyzers . | . . . . Garrison Access . | . . . . Total Hacks 26 | . 7 2 17 Successful 15 | . 3 1 11 Failed 10 | . 4 1 5 Catastrophic . | . . . . Database Lockouts 1 | . . . 1 Manual . | . . . . Terminals 26 | . 7 2 17 Fabricators . | . . . . Repair Stations . | . . . . Recycling Units . | . . . . Scanalyzers . | . . . . Garrison Access . | . . . . Terminal Hacks 15 | . 3 1 11 Record 11 | . 1 . 10 Prototype ID Bank 1 | . 1 . . Terminal Index 1 | . . . 1 Alert Level 2 | . 1 1 . Fabricator Hacks . | . . . . Repair Station Hacks . | . . . . Recycling Unit Hacks . | . . . . Scanalyzer . | . . . . Garrison Access Hacks . | . . . . Unauthorized Hacks . | . . . . Terminals . | . . . . Fabricators . | . . . . Repair Stations . | . . . . Recycling Units . | . . . . Scanalyzers . | . . . . Garrison Access . | . . . . Data Cores Recovered . | . . . . Used . | . . . . Hacking Detections 4 | . . 1 3 Full Trace Events 3 | . . . 3 Feedback Events . | . . . . Feedback Blocked . | . . . . Robot Schematics Acquired . | . . . . Robots Built . | . . . . Authchips . | . . . . Time . | . . . . Total Robot Build Rating . | . . . . Part Schematics Acquired . | . . . . Parts Built . | . . . . Authchips . | . . . . Time . | . . . . Total Part Build Rating . | . . . . Parts Repaired . | . . . . Time . | . . . . Parts Recycled . | . . . . Recycled Matter . | . . . . Retrieved Matter . | . . . . Retrieved Components . | . . . . Parts Scanalyzed . | . . . . Part Schematics Acquired . | . . . . Parts Damaged . | . . . . Bothacking | -11 -10 -10 -9 ------------ Run | Yrd Mat Min Mat Used RIF Installer . | . . . . Robots Hacked . | . . . . Non-combat . | . . . . Combat . | . . . . Robot Hacks Applied . | . . . . Relay Couplers Released . | . . . . Fabnet Peak Effective % . | . . . . Robots Rewired . | . . . . Allies Hacked . | . . . . Hacks Repelled . | . . . . Allies | -11 -10 -10 -9 -------- Run | Yrd Mat Min Mat Total Allies . | . . . . Largest Group . | . . . . Highest-Rated Group . | . . . . Highest-Rated Ally . | . . . . Total Orders . | . . . . Ally Attacks . | . . . . Total Damage . | . . . . Kills . | . . . . Allies Corrupted . | . . . . Allies Melted . | . . . . Intel | -11 -10 -10 -9 ------- Run | Yrd Mat Min Mat Active Infowar (turns) . | . . . . Robot Analysis Total . | . . . . Derelict Logs Recovered 2 | . . 2 . Drone Launches . | . . . . Drone Recoveries . | . . . . Exploration | -11 -10 -10 -9 ------------- Run | Yrd Mat Min Mat Turns Passed 1669 | . 66 188 1415 Spaces Moved 497 | 1 56 148 292 Core 3 | . . . 3 Treads 151 | . . . 151 Legs 343 | 1 56 148 138 Wheels . | . . . . Hover . | . . . . Flight . | . . . . Fastest Speed 120 | 120 120 120 120 Average Speed 138 | 120 120 120 151 Slowest Speed 300 | 120 120 120 300 Overloaded Moves . | . . . . Propulsion Burnouts . | . . . . Robots Hopped . | . . . . Potential Cave-ins . | . . . . Cave-ins Triggered . | . . . . Exploration Rate (%) 26 | 2 10 59 33 Regions Visited 3 Branch Regions 1 Pre-discovered Areas 1 | . . 1 . Known Exits Taken . | . . . . Unknown Exits Taken 3 | 1 1 1 . Scrap Searched 1 | . . 1 . Spaces Dug . | . . . . Terrain Destroyed 4 | . . . 4 Melee . | . . . . Projectile . | . . . . AOE 4 | . . . 4 Terrain Rammed . | . . . . Walls Destroyed . | . . . . Machines Disabled . | . . . . Actions | -11 -10 -10 -9 --------- Run | Yrd Mat Min Mat Total 1372 | . 55 152 1165 Wait 793 | . . . 793 Move 494 | . 55 147 292 Hop . | . . . . Pick Up 5 | . . 1 4 Fast Attach . | . . . . Attach 8 | . . . 8 Detach 2 | . . . 2 Swap 1 | . . 1 . Drop . | . . . . Fire 68 | . . 3 65 Melee . | . . . . Ram . | . . . . Kick . | . . . . Crush 1 | . . . 1 Escape Stasis . | . . . . Rewire . | . . . . Trap . | . . . . Miscellaneous . | . . . . Route ------- -11/Scrapyard -10/Materials -10/Mines -9/Materials History --------- Turn | Location | Event 1 | -11/Scrapyard | Discovered new exit (range 0) 1 | -11/Scrapyard | Entered Materials 2 | -10/Materials | Met a group of wandering Federalists 49 | -10/Materials | Discovered new exit (range 15) 67 | -10/Materials | Entered Mines 67 | -10/Mines | Accompanied by 3 allies 83 | -10/Mines | Met a Derelict bent on vengeance 141 | -10/Mines | Learned location of Zion (-7) 221 | -10/Mines | Discovered new exit (range 16) 226 | -10/Mines | Learned Materials stockpile data 255 | -10/Mines | Entered Materials 255 | -9/Materials | Evolved 2 slots: Power x1, Utility x1 310 | -9/Materials | Build established: Mutant 537 | -9/Materials | Central database locked down 773 | -9/Materials | Core integrity fell below 50% 1655 | -9/Materials | Core integrity fell below 20% 1670 | -9/Materials | Destroyed by G-47 Trooper with Particle Gun Last Messages --------------- can be put in place. [Achievement: Librarian] >>Query(Authchip) Early [Fabricator] systems were more openly accessible, but rampant abuse by [Derelict] intruders made it necessary to introduce an authorization system to limit unauthorized use of resources. An authchip is now required to load schematics and initiate build orders, and the chips have been divided by schematic category to further limit the potential for abuse. ALERT: Suspicious activity at Terminal M010. Dispatching Investigation squad. K-01 Serf cleans the Fusion Modulator. W-16 Scout sends out distress signal. Lgt. Treads destroyed. K-01 Serf destroyed. Imp. Assault Rifle destroyed. R-06 Scavenger collects Wheel. Map ----- +----------------------------------------------------+ | ?????????????????????????????????????????????????? | | ?????????????????????????????????????????????????? | | ?????????????????????????????????????????????????? | | ?????????????????????????????????????????????????? | | ?????????????????????????????????????????????????? | | ?????????????????????????????????????????????????? | | ?????????????????????????????????????????????????? | | ?????????????????????????????????????????????????? | | ?????????????????????????????????????????????????? | | ?????????????????????????????????????????????????? | | ?????????????????????????????????????????????????? | | ????????????????????????????? ???????????????????? | | ???????????????????????????? ????????????????? | | ???????????????????????????? #???????????????? | | ?????????####??????????##### ????????????????? | | ?????????# ?????????? #????????????????? | | ???/?????# ?????????? #????????????????? | | ?????????# ?????????? #????????????????? | | ?????????# #?????????# #????????????????? | | ?????????# #?????????# #????????????????? | | ?????????+ #?????????# = #????????????????? | | ?????????# ########### % #???????????????=? | | ????#???## ## # r #????????????????? | | ### ### # """ # #????????????????? | | # """ # ####?????????????? | | T + """ # @ g u ????????? | | # + g ????????? | | ?+####+## # """ # g ????????? | | ?? ####%## """ ###### ]] ||! ?????????? | | ?"""" #??# ## """ #?????? ]] |= ?????????? | | ?"""" #??# ## #??????? |= ??????????? | | ???"" #?##+###########???????? ??????????? | | ???? #?# #???????????? ??????????? | | ????##/#### [ #??????????????###???????????? | | ##### # #????????????????????????????? | | # !** #????????????????????????????? | | % + *** #????????????????????????????? | | %% ! # ** #????????????????????????????? | | #+### # #????????????????????????????? | | == ## ## #????????????????????????????? | | %! ## ############????????????????????????????? | | = ## # T #????????????????????????????????? | | """ ## + #????????????????????????????????? | | """ ## # """ #????????????????????????????????? | | """ ## + """ #????????????????????????????????? | | ###### # """ #????????????????????????????????? | | ?????# # #????????????????????????????????? | | ?????# ########????????????????????????????????? | | ?????# #???????????????????????????????????????? | | ###### ########????????????????????????????????? | +----------------------------------------------------+ Best States ------------- Heat Dissipation 28 Energy Generation 15 Energy Capacity 400 Matter Stores 300 Matter Capacity 300 Sight Range 16 Terrain Scan Density 10 Evasion (%) 55 Recoil Reduction 2 Item Schematics ----------------- None Robot Schematics ------------------ None Fabricated ------------ Nothing Repaired ---------- Nothing Alien Tech Used ----------------- None Achievements -------------- Librarian Challenges ------------ None Game ------ Seed UltimateTripodShovel Manual? 0 Play Time 00:15:06 Cumulative 3.8 hours Start 2025.08.23 @ 09:54:29 End 2025.08.23 @ 10:07:51 Sessions 1 Manual Loads 0 Difficulty Rogue Special Mode None Game No. 16 Rogue 16 Adventurer 0 Explorer 0 Win Type - Total 0 Types 0/0/0/0/0/0/0/0/0/0 Lore% 2 Gallery% 7 Achievement% 9 Wizard Run 0 Options --------- Layout 1 ASCII 0 Keyboard 0 Movement Mouse Keybinds 0 Fullscreen 1 Font 24/Smallcaps Map View 50x35 Zoom Use 0% Tactical HUD 0 Map Filters NONE Filters NONE Steam 1 RUN: 6943bfd8-3244-44b2-b3be-c38a69a23aed